bitfinex-derivatives/quotes_SOLF0:USTF0_20241217
["timestamp","ask_amount","ask_price","bid_price","bid_amount"]
[1734433106397,2.2453,222.69,222.65,4.73077252]
[1734433106597,2.2453,222.69,222.66,4.73077252]
[1734433106802,2.2453,222.69,222.63,2.18]
[1734433106989,2.2453,222.69,222.65,2.2457]
[1734433107189,2.2453,222.69,222.66,4.73371301]
[1734433107394,2.2452,222.71,222.65,2.2457]
[1734433107596,2.2452,222.71,222.66,4.73604117]
[1734433107901,2.2452,222.71,222.65,2.2457]
[1734433108097,2.2452,222.71,222.66,4.73600728]
[1734433108402,2.2453,222.7,222.65,2.2457]
[1734433108592,2.2453,222.7,222.66,4.73818862]
[1734433108796,2.2453,222.7,222.65,2.2457]
[1734433109002,2.2453,222.7,222.66,4.73818862]
[1734433109299,6.81537404,222.68,222.63,4.4259]
[1734433109496,6.81537404,222.68,222.62,2.18]
[1734433109800,6.81537404,222.66,222.63,4.74085625]
[1734433110096,6.81537404,222.66,222.63,2.2459]
[1734433110894,6.81537404,222.66,222.62,2.18]
[1734433111094,6.81537404,222.66,222.62,2.246]
[1734433111899,9.06107404,222.66,222.62,2.246]
[1734433114801,2.18,222.7,222.61,6.81537404]
[1734433114999,6.81537404,222.69,222.65,2.2457]
[1734433117406,9.06077404,222.69,222.65,2.2457]
[1734433117798,2.2454,222.69,222.65,2.2457]
[1734433118004,6.81537404,222.68,222.65,2.2457]
[1734433118504,5.5064139,222.79,222.67,6.81537404]
[1734433118700,1.5179,222.81,222.68,2.18]
[1734433118900,1.5179,222.81,222.73,6.81537404]
[1734433119103,2.2445,222.78,222.73,9.06027404]
[1734433119408,6.81537404,222.78,222.71,8.99537404]
[1734433119910,2.2446,222.77,222.72,2.245]
[1734433122211,9.05997404,222.77,222.72,2.245]
[1734433124909,6.81537404,222.77,222.72,2.245]
[1734433125105,2.2447,222.76,222.72,2.245]
[1734433125312,2.2447,222.76,222.73,2.2449]
[1734433126115,6.81537404,222.79,222.73,2.2449]
[1734433126410,2.2446,222.77,222.73,2.2449]
[1734433128207,1.5179,222.81,222.71,8.99537404]
[1734433128404,8.33327404,222.81,222.76,2.2446]
[1734433128610,6.81537404,222.81,222.76,2.2446]
[1734433128917,1.5155,222.87,222.75,6.81537404]
[1734433129106,2.2441,222.81,222.77,2.2445]
[1734433129709,2.2438,222.84,222.8,2.2442]
[1734433130007,2.2438,222.84,222.77,6.81537404]
[1734433130315,2.2438,222.84,222.79,2.2442]
[1734433130610,2.244,222.83,222.79,2.2442]
[1734433132516,6.81537404,222.82,222.66,7.4558]
[1734433132708,6.81537404,222.8,222.67,2.18]
[1734433132912,6.81537404,222.8,222.72,6.81537404]
[1734433133117,2.2446,222.77,222.73,4.4248]
[1734433133813,2.2446,222.76,222.73,4.4248]
[1734433135613,2.2446,222.76,222.73,2.2448]
[1734433138021,2.2445,222.77,222.74,2.2448]
[1734433139018,6.81537404,222.8,222.72,8.99537404]
[1734433139322,2.2444,222.78,222.75,2.2446]
[1734433140422,2.2445,222.77,222.75,2.2446]
[1734433142726,6.81537404,222.78,222.73,2.2449]
[1734433142923,2.2447,222.76,222.73,2.2449]
[1734433144426,2.2445,222.78,222.75,2.2447]
[1734433144926,8.99537404,222.84,222.79,2.2443]
[1734433145127,6.81537404,222.84,222.79,2.2443]
[1734433145524,2.2441,222.82,222.79,2.2443]
[1734433147921,2.2442,222.8,222.76,2.2446]
[1734433148122,6.81537404,222.8,222.72,2.18]
[1734433148319,6.81537404,222.8,222.73,4.75168466]
[1734433148524,6.81537404,222.8,222.72,8.99537404]
[1734433148924,6.81537404,222.8,222.73,4.7516888]
[1734433149125,6.81537404,222.8,222.72,8.99537404]
[1734433149430,2.2446,222.77,222.73,2.2449]
[1734433150422,2.2446,222.77,222.72,8.99537404]
[1734433150622,2.2446,222.77,222.74,9.06017404]
[1734433153234,6.81537404,222.8,222.74,9.06017404]
[1734433153435,6.81537404,222.8,222.75,4.75233672]
[1734433153436,2.2445,222.78,222.75,4.75233672]
[1734433153634,2.2445,222.78,222.75,2.2447]
[1734433154033,2.2443,222.8,222.76,9.05997404]
[1734433155134,2.2443,222.8,222.77,2.2445]
[1734433155328,2.18,222.83,222.77,2.2445]
[1734433155533,2.2441,222.81,222.77,2.2445]
[1734433155830,3.0367,222.87,222.76,6.81537404]
[1734433156036,3.0367,222.87,222.8,6.81537404]
[1734433156234,9.85207404,222.87,222.8,6.81537404]
[1734433156629,2.2438,222.84,222.8,6.81537404]
[1734433157026,2.2438,222.84,222.78,2.18]
[1734433157226,2.2438,222.84,222.8,2.2442]
[1734433159031,2.2438,222.84,222.81,4.75588512]
[1734433159233,2.2438,222.84,222.8,2.2442]
[1734433159434,2.2438,222.84,222.81,4.75678175]
[1734433159637,2.2438,222.84,222.8,2.2442]
[1734433159937,2.2438,222.84,222.81,4.7564791]
[1734433160133,2.2438,222.84,222.8,2.2442]
[1734433160339,2.2438,222.84,222.81,4.75599067]
[1734433160535,2.2438,222.84,222.8,2.2442]
[1734433160729,2.2438,222.84,222.81,4.75763975]
[1734433160928,2.2438,222.84,222.8,2.2442]
[1734433161133,2.2438,222.84,222.81,4.75696315]
[1734433161533,2.2438,222.84,222.8,2.2442]
[1734433161837,2.2436,222.86,222.82,2.2439]
[1734433162039,2.2436,222.86,222.83,6.81537404]
[1734433162233,6.81537404,222.89,222.83,6.81537404]
[1734433162933,6.81537404,222.89,222.84,4.75788621]
[1734433163137,6.81537404,222.91,222.83,6.81537404]
[1734433163335,6.81537404,222.91,222.84,6.9153104]
[1734433163536,6.81537404,222.91,222.85,4.7553104]
[1734433163738,6.81537404,222.91,222.86,4.7553104]
[1734433163939,6.81537404,222.93,222.87,4.7553104]
[1734433164137,6.81537404,222.93,222.88,4.75590759]
[1734433164437,3.0562,222.95,222.88,4.75590759]
[1734433164640,6.81537404,222.94,222.89,4.75284577]
[1734433164832,6.81537404,222.94,222.87,6.81537404]
[1734433165037,2.243,222.93,222.89,2.2433]
[1734433165340,1.4754,222.95,222.9,4.74966556]
[1734433165534,1.4754,222.95,222.89,6.81537404]
[1734433165735,1.4754,222.95,222.89,8.97537404]
[1734433165935,2.2429,222.94,222.9,4.74991312]
[1734433166131,2.2429,222.94,222.89,8.97537404]
[1734433167146,9.05807404,222.95,222.9,6.99167494]
[1734433167443,9.05807404,222.95,222.9,2.2431]
[1734433168035,2.2427,222.95,222.9,2.2431]
[1734433168235,2.2427,222.95,222.91,2.2431]
[1734433168640,2.2428,222.94,222.89,8.97537404]
[1734433168839,2.2428,222.94,222.9,6.98501764]
[1734433169043,2.2428,222.94,222.9,2.2432]
[1734433171343,2.243,222.93,222.89,4.4033]
[1734433173342,2.243,222.93,222.89,2.16]
[1734433173944,2.243,222.92,222.89,2.16]
[1734433178051,6.81537404,222.97,222.92,2.243]
[1734433179044,6.81537404,222.97,222.89,8.97537404]
[1734433179249,2.2428,222.95,222.91,2.2431]
[1734433181147,6.81537404,222.97,222.92,2.243]
[1734433181355,2.2426,222.96,222.92,2.243]
[1734433181852,2.2426,222.96,222.93,2.2429]
[1734433182950,6.81537404,222.97,222.89,8.97537404]
[1734433183144,6.81537404,222.97,222.94,2.2428]
[1734433184753,2.2425,222.98,222.95,2.2427]
[1734433185251,1.5368,223.01,222.94,2.16]
[1734433185453,6.81537404,223.01,222.94,2.16]
[1734433186244,9.05747404,223.01,222.97,2.2425]
[1734433186446,6.81537404,223.01,222.94,2.16]
[1734433186651,6.81537404,222.99,222.94,2.16]
[1734433187054,2.2425,222.98,222.94,4.4028]
[1734433187256,6.81537404,222.99,222.94,4.4028]
[1734433188554,6.81537404,222.97,222.94,2.16]
[1734433189447,2.2427,222.96,222.92,9.74040183]
[1734433190254,2.2425,222.98,222.93,2.2429]
[1734433190452,6.81537404,222.99,222.93,2.2429]
[1734433191557,6.81537404,222.99,222.94,2.2428]
[1734433192554,2.2424,222.98,222.94,2.2428]
[1734433195566,2.2423,223.0,222.96,2.2426]
[1734433195863,6.81537404,223.01,222.95,6.81537404]
[1734433196261,9.05747404,223.01,222.97,2.2424]
[1734433196463,1.5867,223.06,222.97,2.16]
[1734433196658,6.81537404,223.04,222.97,8.97537404]
[1734433197255,2.242,223.03,222.99,2.2423]
[1734433199367,8.40207404,223.06,222.99,6.81537404]
[1734433199866,2.2417,223.05,223.01,2.2421]
[1734433201263,6.81537404,223.04,222.97,2.16]
[1734433201467,6.81537404,223.04,222.98,11.55798202]
[1734433201669,6.81537404,223.04,222.99,4.74260798]
[1734433201869,6.81537404,223.04,222.98,6.81537404]
[1734433202067,2.2419,223.03,222.99,4.74111621]
[1734433202264,6.81537404,223.05,222.98,6.81537404]
[1734433202461,6.81537404,223.05,222.99,4.74197255]
[1734433202660,6.81537404,223.05,222.98,6.81537404]
[1734433202859,2.2418,223.04,223.0,2.2421]
[1734433203169,6.81537404,223.07,223.0,6.81537404]
[1734433203664,2.2417,223.05,223.01,2.242]
[1734433203872,6.81537404,223.07,223.02,2.16]
[1734433204263,2.2417,223.06,223.02,4.402]
[1734433204667,2.2412,223.11,223.05,2.2417]
[1734433204874,6.81537404,223.11,223.02,2.16]
[1734433205069,6.81537404,223.11,223.04,6.81537404]
[1734433205472,6.81537404,223.11,223.02,2.16]
[1734433205771,6.81537404,223.11,223.04,6.81537404]
[1734433205971,2.2414,223.09,223.04,6.81537404]
[1734433206169,6.81537404,223.09,223.03,4.74783089]
[1734433206366,6.81537404,223.07,223.03,4.74783089]
[1734433206567,2.2417,223.06,223.03,4.74783089]
[1734433206773,6.81537404,223.09,223.03,4.74783089]
[1734433207070,6.81537404,223.09,223.04,2.2418]
[1734433207071,2.2414,223.09,223.04,2.2418]
[1734433207279,2.2414,223.09,223.05,2.16]
[1734433207674,6.81537404,223.1,223.05,2.16]
[1734433207869,2.2416,223.06,223.05,2.16]
[1734433209575,2.2415,223.08,223.05,2.16]
[1734433209965,6.81537404,223.1,223.05,2.16]
[1734433210167,2.2413,223.09,223.05,4.4016]
[1734433210577,2.2412,223.1,223.06,2.2416]
[1734433210979,6.81537404,223.12,223.05,8.97537404]
[1734433211169,2.2412,223.11,223.06,2.2416]
[1734433211976,2.2413,223.1,223.06,2.2416]
[1734433212473,2.2413,223.1,223.05,11.21707404]
[1734433213882,2.2413,223.1,223.06,2.16]
[1734433214377,6.81537404,223.1,223.06,2.16]
[1734433215071,4.4633,223.13,222.93,4.4607]
[1734433215072,6.81537404,223.08,222.93,4.4607]
[1734433215373,4.4633,223.13,222.94,6.90458985]
[1734433215374,6.81537404,223.06,222.94,6.90458985]
[1734433215574,6.81537404,223.06,222.98,6.81537404]
[1734433215775,6.81537404,223.06,222.99,2.16]
[1734433216575,2.242,223.03,222.99,4.4023]
[1734433217083,2.16,223.12,222.98,2.16]
[1734433217084,6.81537404,223.04,222.98,2.16]
[1734433217274,6.81537404,223.06,222.98,8.97537404]
[1734433217471,2.16,223.12,223.04,9.05717404]
[1734433217673,6.81537404,223.11,223.04,6.81537404]
[1734433218881,2.2415,223.08,223.04,9.05707404]
[1734433219484,6.81537404,223.11,223.06,9.05687404]
[1734433219485,2.2411,223.11,223.06,9.05687404]
[1734433219683,7.09352404,223.15,223.03,2.16]
[1734433219881,7.09352404,223.15,223.08,6.81537404]
[1734433220081,7.09352404,223.15,223.08,8.97537404]
[1734433220784,2.2411,223.12,223.08,8.97537404]
[1734433221280,0.27815,223.15,223.1,6.81537404]
[1734433221487,0.27815,223.15,223.08,2.16]
[1734433221488,2.24,223.23,223.14,6.81537404]
[1734433221681,2.24,223.23,223.18,6.81537404]
[1734433221879,6.81537404,223.25,223.18,6.81537404]
[1734433222080,6.81537404,223.25,223.18,8.97537404]
[1734433222283,6.81537404,223.25,223.18,11.21577404]
[1734433222487,6.81537404,223.25,223.18,8.97537404]
[1734433222685,6.81537404,223.25,223.18,2.16]
[1734433222885,6.81537404,223.25,223.18,8.97537404]
[1734433222886,2.24,223.23,223.18,8.97537404]
[1734433223183,6.81537404,223.25,223.18,8.97537404]
[1734433223686,6.81537404,223.25,223.18,2.16]
[1734433223887,6.81537404,223.25,223.18,8.97537404]
[1734433224583,2.24,223.22,223.18,8.97537404]
[1734433226189,2.2399,223.23,223.18,8.97537404]
[1734433226386,6.81537404,223.25,223.18,8.97537404]
[1734433226590,11.99106474,223.29,223.2,6.81537404]
[1734433226885,6.81537404,223.27,223.2,6.81537404]
[1734433227588,2.24,223.22,223.2,6.81537404]
[1734433229089,2.2399,223.24,223.2,6.81537404]
[1734433229681,6.81537404,223.27,223.2,6.81537404]
[1734433229881,2.2399,223.23,223.2,6.81537404]
[1734433230087,6.81537404,223.25,223.18,2.16]
[1734433230288,2.2399,223.23,223.18,8.97537404]
[1734433230685,6.81537404,223.26,223.18,8.97537404]
[1734433230891,2.2401,223.22,223.18,8.97537404]
[1734433231395,2.2401,223.22,223.2,6.81537404]
[1734433232189,6.81537404,223.26,223.2,6.81537404]
[1734433232190,2.2399,223.23,223.2,6.81537404]
[1734433232385,6.81537404,223.22,223.09,4.6613]
[1734433232590,6.81537404,223.19,223.13,6.81537404]
[1734433233290,2.2407,223.16,223.13,6.81537404]
[1734433235396,2.2407,223.16,223.15,6.81537404]
[1734433237187,2.2408,223.14,223.11,2.241]
[1734433237394,6.81537404,223.17,223.1,6.81537404]
[1734433237589,6.81537404,223.17,223.09,2.16]
[1734433237792,6.81537404,223.17,223.09,8.97537404]
[1734433237993,1.5136,223.19,223.09,2.16]
[1734433238891,2.241,223.12,223.09,2.16]
[1734433240599,1.5136,223.19,223.09,2.16]
[1734433240600,2.2411,223.11,223.09,2.16]
[1734433240796,10.61239826,223.14,223.01,3.1244]
[1734433240996,10.61239826,223.14,223.02,2.16]
[1734433241197,2.2416,223.06,223.02,2.16]
[1734433241595,10.61239826,223.14,223.02,2.16]
[1734433241596,2.2415,223.08,223.02,2.16]
[1734433241895,2.16,223.16,223.03,10.61239826]
[1734433242088,2.16,223.16,223.02,2.16]
[1734433242089,2.16,223.16,223.09,2.2413]
[1734433242298,2.16,223.16,223.08,2.16]
[1734433242792,10.61239826,223.14,223.01,3.1244]
[1734433242997,10.61239826,223.14,223.0,10.61239826]
[1734433243197,2.2412,223.11,223.01,9.12558303]
[1734433243399,10.61239826,223.14,223.01,4.402]
[1734433243894,2.2416,223.07,223.01,4.402]
[1734433244495,10.61239826,223.14,223.01,4.402]
[1734433244695,2.2416,223.06,223.01,4.402]
[1734433244898,2.2416,223.06,223.01,9.90494987]
[1734433245088,2.242,223.03,222.99,12.85459826]
[1734433245294,12.77239826,223.11,222.98,2.16]
[1734433245491,10.61239826,223.08,222.98,2.16]
[1734433245898,10.61239826,223.08,222.98,4.4024]
[1734433246094,10.61239826,223.05,222.95,33.92308471]
[1734433246300,10.61239826,223.05,222.95,36.08308471]
[1734433246500,2.2422,223.0,222.95,46.69548297]
[1734433246702,2.16,223.06,222.95,46.69548297]
[1734433247103,10.61239826,223.05,222.92,10.61239826]
[1734433247302,10.61239826,223.02,222.93,2.16]
[1734433247499,10.61239826,223.02,222.91,2.16]
[1734433247702,10.61239826,223.02,222.89,10.61239826]
[1734433247703,3.656,223.01,222.89,10.61239826]
[1734433247903,6.7625,223.01,222.89,2.16]
[1734433248108,10.61239826,222.99,222.89,2.16]
[1734433248307,10.61239826,222.99,222.87,2.16]
[1734433248497,10.61239826,222.96,222.84,2.16]
[1734433248703,2.16,222.95,222.84,2.16]
[1734433248905,2.2436,222.87,222.84,2.16]
[1734433249403,2.2436,222.87,222.8,12.85659826]
[1734433249605,1.4785,222.92,222.81,6.88456816]
[1734433249804,2.2436,222.86,222.81,6.88456816]
[1734433250001,2.2436,222.86,222.82,4.72456816]
[1734433250200,1.4785,222.92,222.81,2.16]
[1734433250398,2.2435,222.88,222.82,6.96539323]
[1734433250704,1.4785,222.92,222.81,2.16]
[1734433250905,1.4785,222.92,222.82,4.72167305]
[1734433251096,1.4785,222.92,222.81,2.16]
[1734433251403,10.61239826,222.9,222.79,2.16]
[1734433251610,2.16,222.89,222.79,2.16]
[1734433252198,2.16,222.89,222.59,379.0]
[1734433252199,10.61239826,222.87,222.74,10.61239826]
[1734433252503,10.61239826,222.87,222.77,2.16]
[1734433253400,2.16,222.89,222.77,12.77239826]
[1734433253603,2.16,222.89,222.77,2.16]
[1734433254406,2.2438,222.84,222.78,2.2444]
[1734433254701,10.61239826,222.87,222.77,2.16]
[1734433254906,10.61239826,222.84,222.75,2.16]
[1734433255107,2.2443,222.8,222.75,2.16]
[1734433255496,2.2443,222.8,222.72,2.2449]
[1734433255703,2.2445,222.78,222.72,2.2449]
[1734433256611,2.2445,222.77,222.72,2.2449]
[1734433257606,2.2447,222.76,222.71,2.16]
[1734433257904,10.61239826,222.81,222.68,10.61239826]
[1734433258104,2.2448,222.75,222.69,4.4053]
[1734433258305,2.2448,222.75,222.69,2.2453]
[1734433258500,2.2448,222.75,222.69,2.16]
[1734433258705,2.2448,222.75,222.7,2.2452]
[1734433259302,1.5097,222.8,222.69,2.16]
[1734433259502,2.16,222.79,222.66,5.33656162]
[1734433259706,10.61239826,222.78,222.67,2.16]
[1734433260003,10.61239826,222.78,222.66,2.16]
[1734433260206,10.61239826,222.75,222.62,53.00923599]
[1734433260403,10.61239826,222.75,222.63,2.16]
[1734433260404,2.2455,222.68,222.63,2.16]
[1734433261208,2.2456,222.67,222.63,2.16]
[1734433262503,2.2454,222.68,222.63,4.4059]
[1734433263004,10.61239826,222.72,222.63,2.16]
[1734433263005,2.2456,222.67,222.63,2.16]
[1734433263308,10.61239826,222.72,222.62,53.00923599]
[1734433264403,2.2453,222.69,222.62,53.00923599]
[1734433264608,10.61239826,222.72,222.62,53.00923599]
[1734433265009,10.61239826,222.69,222.62,53.00923599]
[1734433265209,10.61239826,222.69,222.6,2.2462]
[1734433265412,2.2457,222.66,222.6,2.2462]
[1734433265804,2.2457,222.66,222.56,10.61239826]
[1734433265805,12.77239826,222.69,222.58,2.2464]
[1734433266012,10.61239826,222.66,222.54,4.5893]
[1734433266313,10.61239826,222.66,222.56,2.16]
[1734433266706,5.51757622,222.8,222.65,10.61239826]
[1734433267007,16.12997448,222.8,222.66,2.16]
[1734433267206,2.2448,222.75,222.68,2.2453]
[1734433267403,16.12997448,222.8,222.68,2.2453]
[1734433267812,16.12997448,222.8,222.69,2.2453]
[1734433267813,2.2448,222.75,222.69,2.2453]
[1734433268014,2.16,222.78,222.68,10.61239826]
[1734433268514,10.61239826,222.8,222.68,10.61239826]
[1734433268705,10.61239826,222.8,222.66,5.1629]
[1734433269012,10.61239826,222.8,222.67,2.16]
[1734433269214,2.2448,222.75,222.69,2.2452]
[1734433269408,2.2448,222.75,222.67,2.16]
[1734433270013,2.2448,222.74,222.7,2.2452]
[1734433270412,4.5971,222.85,222.71,10.61239826]
[1734433270615,3.1168,222.85,222.74,10.61239826]
[1734433270913,10.61239826,222.88,222.75,2.16]
[1734433271111,10.61239826,222.88,222.79,2.2443]
[1734433271314,10.61239826,222.88,222.75,2.16]
[1734433271511,10.61239826,222.88,222.77,2.2445]
[1734433271711,5.48116438,222.87,222.77,2.2445]
[1734433271914,2.2438,222.84,222.75,2.16]
[1734433272410,5.48116438,222.87,222.78,2.2444]
[1734433272411,2.2439,222.83,222.78,2.2444]
[1734433274015,2.244,222.82,222.78,2.2444]
[1734433274216,2.244,222.82,222.77,2.2445]
[1734433274512,2.244,222.82,222.75,2.16]
[1734433275416,2.244,222.82,222.78,2.2444]
[1734433277719,10.61239826,222.85,222.71,10.61239826]
[1734433278018,10.61239826,222.82,222.72,2.16]
[1734433279318,2.2445,222.77,222.73,2.2449]
[1734433279819,2.2444,222.79,222.73,2.2449]
[1734433280019,2.2444,222.79,222.74,2.2448]
[1734433280320,2.16,222.84,222.72,2.16]
[1734433280321,2.2442,222.81,222.72,2.16]
[1734433280515,2.2442,222.81,222.73,4.68270667]
[1734433280717,2.2442,222.81,222.74,4.68254684]
[1734433280915,2.2442,222.81,222.72,2.16]
[1734433281116,2.2442,222.81,222.73,4.68250494]
[1734433281313,10.61239826,222.85,222.74,4.68250494]
[1734433281619,10.61239826,222.85,222.75,4.68250494]
[1734433281821,1.5912,222.84,222.74,2.16]
[1734433282115,10.61239826,222.82,222.74,2.16]
[1734433282318,2.2445,222.78,222.74,2.16]
[1734433282514,10.61239826,222.82,222.74,2.16]
[1734433283515,10.61239826,222.82,222.68,17.36995094]
[1734433283715,10.61239826,222.79,222.69,4.69649477]
[1734433284020,10.61239826,222.76,222.67,2.16]
[1734433284217,2.2452,222.71,222.68,4.7012448]
[1734433284416,2.2452,222.71,222.67,2.16]
[1734433284716,3.052,222.83,222.68,10.61239826]
[1734433284910,2.2445,222.78,222.68,10.61239826]
[1734433285109,10.61239826,222.82,222.67,1.5282]
[1734433285316,2.2443,222.79,222.72,2.245]
[1734433285518,10.61239826,222.82,222.72,4.405]
[1734433285910,10.61239826,222.82,222.73,6.94912305]
[1734433285911,2.2445,222.78,222.73,6.94912305]
[1734433286716,2.2445,222.78,222.73,2.2449]
[1734433287015,2.2443,222.8,222.72,2.16]
[1734433287220,13.66439826,222.83,222.73,4.70706865]
[1734433287516,10.61239826,222.77,222.67,2.16]
[1734433287718,2.2451,222.72,222.68,4.71394502]
[1734433287914,2.2451,222.72,222.69,4.71394502]
[1734433288214,17.04504534,222.77,222.65,0.26236]
[1734433288413,17.04504534,222.77,222.7,4.72010147]
[1734433288612,2.16,222.79,222.7,1.58265146]
[1734433288613,17.04504534,222.73,222.7,1.58265146]
[1734433288818,19.20504534,222.73,222.65,0.26236]
[1734433289010,2.9531,222.72,222.65,0.26236]
[1734433289612,17.04504534,222.69,222.65,0.26236]
[1734433289816,2.2456,222.66,222.65,0.26236]
[1734433291514,5.1131,222.72,222.65,0.26236]
[1734433292218,2.2452,222.71,222.66,2.2456]
[1734433292815,2.2453,222.7,222.66,2.2456]
[1734433293421,2.2453,222.7,222.65,2.50806]
[1734433295921,2.9531,222.72,222.65,0.26236]
[1734433296514,2.2456,222.67,222.65,0.26236]
[1734433297227,2.2456,222.66,222.65,0.26236]
[1734433301734,2.16,222.7,222.58,2.16]
[1734433302031,17.04504534,222.68,222.59,4.70608742]
[1734433302230,17.04504534,222.68,222.6,4.70608742]
[1734433302419,17.04504534,222.68,222.61,4.70608742]
[1734433302620,17.04504534,222.68,222.58,4.4064]
[1734433302826,17.04504534,222.68,222.59,4.70548832]
[1734433303025,2.246,222.63,222.6,4.70548832]
[1734433303224,2.246,222.63,222.58,4.4064]
[1734433303523,2.246,222.63,222.59,4.70468027]
[1734433303730,2.246,222.63,222.6,4.70468027]
[1734433303927,2.246,222.63,222.58,4.4064]
[1734433304128,2.246,222.63,222.59,4.7046971]
[1734433304333,2.2461,222.62,222.58,4.4064]
[1734433304726,2.2461,222.62,222.59,4.7039322]
[1734433304930,2.2461,222.62,222.58,2.2464]
[1734433305134,2.246,222.63,222.59,2.2463]
[1734433305838,2.2459,222.63,222.59,2.2463]
[1734433307138,2.2459,222.63,222.6,2.2462]
[1734433308936,10.66099542,222.67,222.57,3.708]
[1734433309138,2.16,222.71,222.57,3.708]
[1734433309344,2.16,222.71,222.58,6.20030951]
[1734433309640,2.2456,222.67,222.63,2.2459]
[1734433309830,2.2456,222.67,222.63,4.4059]
[1734433311341,2.2456,222.67,222.58,1.4987]
[1734433311342,10.66099542,222.69,222.59,2.16]
[1734433311733,2.2459,222.64,222.59,2.2463]
[1734433311941,10.66099542,222.66,222.59,2.2463]
[1734433312242,10.66099542,222.66,222.58,2.16]
[1734433312446,2.246,222.63,222.6,2.2462]
[1734433312943,2.246,222.63,222.58,2.16]
[1734433313138,2.246,222.63,222.59,2.2463]
[1734433313335,2.246,222.63,222.59,4.4063]
[1734433314144,10.66099542,222.66,222.59,4.4063]
[1734433314444,2.2461,222.62,222.58,2.2464]
[1734433314740,10.66099542,222.66,222.58,2.2464]
[1734433314940,2.2462,222.61,222.58,2.2464]
[1734433316342,2.246,222.63,222.59,2.2463]
[1734433316845,10.66099542,222.69,222.57,2.16]
[1734433317238,2.2458,222.65,222.61,2.2461]
[1734433318343,2.2458,222.65,222.57,2.16]
[1734433318549,2.2458,222.65,222.62,2.246]
[1734433319950,2.2458,222.65,222.61,2.2461]
[1734433320743,2.9531,222.72,222.64,2.2458]
[1734433320744,2.2455,222.68,222.64,2.2458]
[1734433320944,13.61409542,222.72,222.63,2.16]
[1734433321848,13.61409542,222.72,222.64,4.70647516]
[1734433322044,2.2453,222.7,222.66,2.2456]
[1734433322246,2.2453,222.7,222.63,2.16]
[1734433322551,13.61409542,222.72,222.64,4.70917022]
[1734433322747,13.61409542,222.72,222.65,4.70917022]
[1734433323054,13.61409542,222.72,222.63,2.16]
[1734433323353,13.61409542,222.72,222.64,4.70954092]
[1734433323548,2.2453,222.69,222.65,2.2457]
[1734433323752,2.2453,222.69,222.65,6.95524092]
[1734433324055,2.2453,222.69,222.65,2.2457]
[1734433325456,4.4872,222.87,222.66,4.71364762]
[1734433325754,10.66099542,222.8,222.67,4.71364762]
[1734433326053,2.2446,222.76,222.72,2.245]
[1734433327455,2.2446,222.76,222.73,4.71562408]
[1734433327754,10.66099542,222.8,222.73,2.16]
[1734433327950,2.2446,222.77,222.73,4.4049]
[1734433328257,2.2446,222.77,222.73,2.16]
[1734433328653,51.38,222.98,222.74,15.37645959]
[1734433328853,10.66099542,222.89,222.77,10.66099542]
[1734433329148,12.90439542,222.89,222.78,6.87546417]
[1734433329353,10.66099542,222.89,222.79,4.71158984]
[1734433329658,10.66099542,222.89,222.83,2.2439]
[1734433329850,10.66099542,222.89,222.83,2.16]
[1734433330051,10.66099542,222.86,222.8,2.16]
[1734433330253,2.2439,222.83,222.8,2.16]
[1734433330546,10.66099542,222.86,222.78,2.16]
[1734433332547,2.244,222.83,222.78,2.16]
[1734433333760,2.244,222.83,222.78,4.4044]
[1734433340460,2.244,222.83,222.78,2.16]
[1734433340668,2.2438,222.85,222.81,2.2441]
[1734433341263,2.2433,222.89,222.84,2.2438]
[1734433341465,2.2433,222.89,222.84,4.4038]
[1734433341767,16.00234875,222.92,222.84,2.16]
[1734433342157,2.2434,222.89,222.85,2.2437]
[1734433343070,2.2431,222.91,222.87,2.2435]
[1734433343461,2.2431,222.91,222.84,2.16]
[1734433344366,10.66099542,222.92,222.84,4.4037]